{"text_format":"1","workbook":"xlsx","n_sheets":2,"sheets":["Besetzungsliste","Instrumentenabkürzungen"],"not_rendered":{"charts":0,"images":2,"macros":1,"external_links":0,"defined_names":4,"comments":0,"pivot_tables":0},"unopened":[],"bounds":{"document_bytes":16777216,"sheet_cells":100000,"rows_first":2000,"rows_last":500,"rows_between":2000,"halvings":0,"cell_chars":16384,"cell_head_chars":4096},"cells_cut":0,"cells_raw":0,"read":"whole","date_system":"1900"}

{"sheet":"Besetzungsliste","index":0,"n_rows":139,"n_cols":16,"rows_kept":139,"cut":false,"hidden":false,"merged":[[14,0,14,7],[6,0,6,1],[8,0,8,1],[11,0,11,1],[6,2,7,7],[8,2,10,7],[11,2,12,7],[13,2,13,7]]}
[]
["Bitte so schnell wie möglich, spätestens bis 30.09.2019 ausfüllen."]
[]
["Besetzungsliste"]
[]
[]
["Name des Orchesters:"]
[]
["Kategorie:"]
[]
[]
["Dirigent (in):"]
[]
[]
["Geburtsdatum erforderlich in allen Jugendkategorien (Jugendsinfonieorchester etc.)"]
[]
["Bitte gestalten Sie die eingesandte Besetzungsliste in der Anordnung nach folgendem Muster:"]
[]
["Nr.","Name, Vorname","PLZ Wohnort","Instrument","Beruf/Studium","bei Lehrern: Fachrichtung\nbei Musik: \nHaupt-/Nebenfachinstrument","Nichtlaie, \nbitte ggf. ankreuzen","Geburtsdatum"]
["01"," Musterfrau, Marianne","12345 Musterhausen","Akk","Lehrerin","Musik, Saxofon/Klavier",null,"01.01.1234"]
["02"," Mustermann, Felix","12345 Musterhausen","Trp","Bankangestellter",null,null,"01.01.1234"]
["03"," Musterfrau, Silke","12345 Musterhausen","Viol","Schülerin",null,null,"01.01.1234"]
["04"," Musterfrau, Mareike","12345 Musterhausen","Akk","Studentin","Schulmusik, Saxofon/Klavier",null,"01.01.1234"]
[]
["Generell gilt: 1 Nicht-Laie verbraucht 1 Ausnahmepunkt."]
[]
["Bei Jugendorchestern gilt:"]
["1 Altersüberschreitung verbraucht 1 Ausnahmepunkt; 1 Nicht-Laie verbraucht 1 Ausnahmepunkt."]
["1 Nicht-Laie, der zusätzlich die Altersgrenze überschreitet, verbraucht 2 Ausnahmepunkte!"]
[]
["Bitte benutzen Sie ausschließlich dieses Formular! Und bitte ändern Sie nichts an der Formatierung.",null,null,null,null,"Nichtlaien, lt. Studienbeginn:",{"$f":"SUM(P39:P138)","v":1}]
[null,null,null,null,null,"Nichtlaien:",{"$f":"SUM(N40:N139)","v":2}]
["Besetzung für den LOW 2019 in Metzingen/Dettingen Gesamtzahl: ",null,null,null,{"$f":"SUM(L40:L139)","v":3},"Altersüberschreitungen:",{"$f":"SUM(O40:O139)","v":1}]
[]
[]
["Besetzung für den DOW Osnabrück 2004 Gesamtzahl: "]
[]
[]
["Nr.","Name, Vorname","PLZ Wohnort *)","Instrument","Beruf/Studium **)","bei Lehrern: Fachrichtung\nbei Musik: \nHaupt-/Nebenfachinstrument","Nichtlaie, bitte ggf. ankreuzen","Geburtsdatum","Bei Musikstudenten: Studienbeginn","1998-06-01","2019-06-01"]
["1","Musterfrau, Marianne",null,null,"Lehrerin","Musik, Saxofon/Klavier",null,"1998-05-30",null,null,null,{"$f":"IF(B40<>\"\",1,0)","v":1},true,{"$f":"IF(M40=TRUE,1,0)","v":1},{"$f":"IF(H40<$J$39,IF(H40=\"\",0,1),0)","v":1},{"$f":"IF(I40<$K$39,IF(I40=\"\",0,1),0)","v":0}]
["2","Musterfrau, Stefanie",null,null,"Studentin","Mathe/Physik",null,"1998-06-01",null,null,null,{"$f":"IF(B41<>\"\",1,0)","v":1},true,{"$f":"IF(M41=TRUE,1,0)","v":1},{"$f":"IF(H41<$J$39,IF(H41=\"\",0,1),0)","v":0},{"$f":"IF(I41<$K$39,IF(I41=\"\",0,1),0)","v":0}]
["3","Musterfrau, Stefan",null,"Saxofon","Student","Musik, Saxofon/Klavier",null,"1998-06-02","2019-05-30",null,null,1,false,{"$f":"IF(M42=TRUE,1,0)","v":0},{"$f":"IF(H42<$J$39,IF(H42=\"\",0,1),0)","v":0},{"$f":"IF(I42<$K$39,IF(I42=\"\",0,1),0)","v":1}]
["4",null,null,null,null,null,null,null,null,null,null,0,false,{"$f":"IF(M43=TRUE,1,0)","v":0},0,{"$f":"IF(I43<$K$39,IF(I43=\"\",0,1),0)","v":0}]
["5",null,null,null,null,null,null,null,null,null,null,0,false,0,0,0]
["6",null,null,null,null,null,null,null,null,null,null,0,false,0,0,0]
["7",null,null,null,null,null,null,null,null,null,null,0,false,0,0,0]
["8",null,null,null,null,null,null,null,null,null,null,0,false,0,0,0]
["9",null,null,null,null,null,null,null,null,null,null,0,false,0,0,0]
["10",null,null,null,null,null,null,null,null,null,null,0,false,0,0,0]
["11",null,null,null,null,null,null,null,null,null,null,0,false,0,0,0]
["12",null,null,null,null,null,null,null,null,null,null,0,false,0,0,0]
["13",null,null,null,null,null,null,null,null,null,null,0,false,0,0,0]
["14",null,null,null,null,null,null,null,null,null,null,0,false,0,0,0]
["15",null,null,null,null,null,null,null,null,null,null,0,false,0,0,0]
["16",null,null,null,null,null,null,null,null,null,null,0,false,0,0,0]
["17",null,null,null,null,null,null,null,null,null,null,0,false,0,0,0]
["18",null,null,null,null,null,null,null,null,null,null,0,false,0,0,0]
["19",null,null,null,null,null,null,null,null,null,null,0,false,0,0,0]
["20",null,null,null,null,null,null,null,null,null,null,0,false,0,0,0]
["21",null,null,null,null,null,null,null,null,null,null,0,false,0,0,0]
["22",null,null,null,null,null,null,null,null,null,null,0,false,0,0,0]
["23",null,null,null,null,null,null,null,null,null,null,0,false,0,0,0]
["24",null,null,null,null,null,null,null,null,null,null,0,false,0,0,0]
["25",null,null,null,null,null,null,null,null,null,null,0,false,0,0,0]
["26",null,null,null,null,null,null,null,null,null,null,0,false,0,0,0]
["27",null,null,null,null,null,null,null,null,null,null,0,false,0,0,0]
["28",null,null,null,null,null,null,null,null,null,null,0,false,0,0,0]
["29",null,null,null,null,null,null,null,null,null,null,0,false,0,0,0]
["30",null,null,null,null,null,null,null,null,null,null,0,false,0,0,0]
["31",null,null,null,null,null,null,null,null,null,null,0,false,0,0,0]
["32",null,null,null,null,null,null,null,null,null,null,0,false,0,0,0]
["33",null,null,null,null,null,null,null,null,null,null,0,false,0,0,0]
["34",null,null,null,null,null,null,null,null,null,null,0,false,0,0,0]
["35",null,null,null,null,null,null,null,null,null,null,0,false,0,0,0]
["36",null,null,null,null," ",null,null,null,null,null,0,false,0,0,0]
["37",null,null,null,null,null,null,null,null,null,null,0,false,0,0,0]
["38",null,null,null,null,null,null,null,null,null,null,0,false,0,0,0]
["39",null,null,null,null,null,null,null,null,null,null,0,false,0,0,0]
["40",null,null,null,null,null,null,null,null,null,null,0,false,0,0,0]
["41",null,null,null,null,null,null,null,null,null,null,0,false,0,0,0]
["42",null,null,null,null,null,null,null,null,null,null,0,false,0,0,0]
["43",null,null,null,null,null,null,null,null,null,null,0,false,0,0,0]
["44",null,null,null,null,null,null,null,null,null,null,0,false,0,0,0]
["45",null,null,null,null,null,null,null,null,null,null,0,false,0,0,0]
["46",null,null,null,null,null,null,null,null,null,null,0,false,0,0,0]
["47",null,null,null,null,null,null,null,null,null,null,0,false,0,0,0]
["48",null,null,null,null,null,null,null,null,null,null,0,false,0,0,0]
["49",null,null,null,null,null,null,null,null,null,null,0,false,0,0,0]
["50",null,null,null,null,null,null,null,null,null,null,0,false,0,0,0]
["51",null,null,null,null,null,null,null,null,null,null,0,false,0,0,0]
["52",null,null,null,null,null,null,null,null,null,null,0,false,0,0,0]
["53",null,null,null,null,null,null,null,null,null,null,0,false,0,0,0]
["54",null,null,null,null,null,null,null,null,null,null,0,false,0,0,0]
["55",null,null,null,null,null,null,null,null,null,null,0,false,0,0,0]
["56",null,null,null,null,null,null,null,null,null,null,0,false,0,0,0]
["57",null,null,null,null,null,null,null,null,null,null,0,false,0,0,0]
["58",null,null,null,null,null,null,null,null,null,null,0,false,0,0,0]
["59",null,null,null,null,null,null,null,null,null,null,0,false,0,0,0]
["60",null,null,null,null,null,null,null,null,null,null,0,false,0,0,0]
["61",null,null,null,null,null,null,null,null,null,null,0,false,0,0,0]
["62",null,null,null,null,null,null,null,null,null,null,0,false,0,0,0]
["63",null,null,null,null,null,null,null,null,null,null,0,false,0,0,0]
["64",null,null,null,null,null,null,null,null,null,null,0,false,0,0,0]
["65",null,null,null,null,null,null,null,null,null,null,0,false,0,0,0]
["66",null,null,null,null,null,null,null,null,null,null,{"$f":"IF(B105<>\"\",1,0)","v":0},false,0,0,0]
["67",null,null,null,null,null,null,null,null,null,null,0,false,0,{"$f":"IF(H106<$J$39,IF(H106=\"\",0,1),0)","v":0},{"$f":"IF(I106<$K$39,IF(I106=\"\",0,1),0)","v":0}]
["68",null,null,null,null,null,null,null,null,null,null,0,false,{"$f":"IF(M107=TRUE,1,0)","v":0},0,0]
["69",null,null,null,null,null,null,null,null,null,null,0,false,0,0,0]
["70",null,null,null,null,null,null,null,null,null,null,0,false,0,0,0]
["71",null,null,null,null,null,null,null,null,null,null,0,false,0,0,0]
["72",null,null,null,null,null,null,null,null,null,null,0,false,0,0,0]
["73",null,null,null,null,null,null,null,null,null,null,0,false,0,0,0]
["74",null,null,null,null,null,null,null,null,null,null,0,false,0,0,0]
["75",null,null,null,null,null,null,null,null,null,null,0,false,0,0,0]
["76",null,null,null,null,null,null,null,null,null,null,0,false,0,0,0]
["77",null,null,null,null,null,null,null,null,null,null,0,false,0,0,0]
["78",null,null,null,null,null,null,null,null,null,null,0,false,0,0,0]
["79",null,null,null,null,null,null,null,null,null,null,0,false,0,0,0]
["80",null,null,null,null,null,null,null,null,null,null,0,false,0,0,0]
["81",null,null,null,null,null,null,null,null,null,null,0,false,0,0,0]
["82",null,null,null,null,null,null,null,null,null,null,0,false,0,0,0]
["83",null,null,null,null,null,null,null,null,null,null,0,false,0,0,0]
["84",null,null,null,null,null,null,null,null,null,null,0,false,0,0,0]
["85",null,null,null,null,null,null,null,null,null,null,0,false,0,0,0]
["86",null,null,null,null,null,null,null,null,null,null,0,false,0,0,0]
["87",null,null,null,null,null,null,null,null,null,null,0,false,0,0,0]
["88",null,null,null,null,null,null,null,null,null,null,0,false,0,0,0]
["89",null,null,null,null,null,null,null,null,null,null,0,false,0,0,0]
["90",null,null,null,null,null,null,null,null,null,null,0,false,0,0,0]
["91",null,null,null,null,null,null,null,null,null,null,0,false,0,0,0]
["92",null,null,null,null,null,null,null,null,null,null,0,false,0,0,0]
["93",null,null,null,null,null,null,null,null,null,null,0,false,0,0,0]
["94",null,null,null,null,null,null,null,null,null,null,0,false,0,0,0]
["95",null,null,null,null,null,null,null,null,null,null,0,false,0,0,0]
["96",null,null,null,null,null,null,null,null,null,null,0,false,0,0,0]
["97",null,null,null,null,null,null,null,null,null,null,0,false,0,0,0]
["98",null,null,null,null,null,null,null,null,null,null,0,false,0,0,0]
["99",null,null,null,null,null,null,null,null,null,null,0,false,0,0,0]
["100",null,null,null,null,null,null,null,null,null,null,0,false,0,0,0]

{"sheet":"Instrumentenabkürzungen","index":1,"n_rows":25,"n_cols":4,"rows_kept":25,"cut":false,"hidden":false,"merged":[[0,1,0,3]]}
[null,"Instrumentenabkürzungen, bitte verwenden!!"]
[null,"A Alt ","Euph Euphonium ","Sfl Sopranflöte"]
[null,"Ablfl Altblockflöte ","Fg Fagott ","Slz Schlagzeug"]
[null,"Afl Altflöte ","Fl Flöte ","Synth Synthesizer "]
[null,"Akk Akkordeon ","Flghr Flügelhorn","Tam Tamtam "]
[null,"Asax Altsaxophon ","FrH Frenchhorn","Tamb Tamburin "]
[null,"Barhr Bariton (Horn) ","Git Gitarre","Tb Tuba "]
[null,"Barsax Baritonsaxophon ","Gl Glocken ","Tfl Tenorflöte"]
[null,"Bassetthr Bassetthorn ","Glsp Glockenspiel ","Trp Trompete "]
[null,"Baßgit Baßgitarre ","Harm Harmonium","Tsax Tenorsaxophon "]
[null,"Baßkl Baßklarinette ","Hn Horn ","Vc Violoncello "]
[null,"Baßpos Baßposaune ","Hf Harfe ","Vib Vibraphon "]
[null,"Be Becken","Kb Kontrabaß ","Vl Violine "]
[null,"Bfl Baßflöte","Kfg Kontrafagott ","Va Viola"]
[null,"Bjo Banjo ","Klav Klavier","Vc Violoncello"]
[null,"Blfl Blockflöte ","Kl Klarinette ","Xyl Xylophon"]
[null,"Bn Bandoneon","Klpicc Klarinette in Es"]
[null,"Cel Celesta ","Korn Kornett "]
[null,"Cemb Cembalo ","Mar Marimbaphon "]
[null,"Cimb Cimbel ","Mundharm Mundharmonika "]
[null,"Dr Drumset","Ob Oboe "]
[null,"Ebass E Bass","Perc Percussionsinstrumente"]
[null,"EGit elektroakustische Gitarre ","Picc Piccoloflöte "]
[null,"EH Englisch Horn ","Pk Pauke"]
[null,"Epno E Piano","Ssax Sopransaxofon"]